Cogmind - Beta 13 @@@ ROGUE MODE // 2024.04.07 @ 16:40:19 Player: Vriska Result: Core destroyed Performance ------------- Evolutions (1) 500 Regions Visited (3) 600 Robots Destroyed (36) 180 Value Destroyed (838) 838 Prototype IDs (4) 80 Alien Tech Used (0) 0 Bonus (0) 0 TOTAL SCORE: 2198 Bonus ------- None Cogmind --------- Core Integrity 0/400 Matter 174/300 Energy 110/240 System Corruption 0% Temperature Critical (987) Movement Core (750) Ox14 Location -9/Materials Parts ------- > --- POWER (1) -------- Nuclear Core > --- PROPULSION (2) --- Light Treads > --- UTILITY (4) ------ Medium Storage Unit Machine Analyzer Hardened Light Armor Plating Reactive Plating > --- WEAPON (2) ------- Ion Cannon Ion Cannon > --- INVENTORY (10) --- Ion Engine Light Treads Hardened Light Armor Plating Hardened Light Armor Plating Hardened Light Armor Plating Advanced Beam Cannon Ion Cannon Scythe Peak State ------------ > --- POWER ------------ Nuclear Core > --- PROPULSION ------- Light Treads Improved Treads > --- UTILITY ---------- Medium Storage Unit Machine Analyzer Hardened Light Armor Plating Reactive Plating > --- WEAPON ----------- Ion Cannon Minigun > --- INVENTORY -------- Light Treads Light Armor Plating Light Armor Plating Hardened Light Armor Plating Hardened Light Armor Plating Hardened Light Armor Plating Ion Cannon Ion Cannon Ion Cannon Scythe [Rating: 23] Favorites ----------- Power Ion Engine Engine Ion Engine Power Core Nuclear Core Propulsion Light Treads Treads Light Treads Utility Medium Storage Unit Storage Medium Storage Unit Processor Machine Analyzer Protection Hardened Light Armor Plating Weapon Grenade Launcher Energy Gun Medium Laser Energy Cannon Ion Cannon Ballistic Gun Light Assault Rifle Ballistic Cannon Light Cannon Launcher Grenade Launcher Build | -11 -10 -10 -9 ------- Run | Yrd Mat Min Mat Slots Evolved 2 | . . . 2 Power . | . . . . Propulsion . | . . . . Utility 2 | . . . 2 Weapon . | . . . . Parts Attached 35 | 8 12 . 15 Power 4 | 1 2 . 1 Engine 3 | 1 2 . . Core 1 | . . . 1 Reactor . | . . . . Propulsion 7 | 2 1 . 4 Treads 7 | 2 1 . 4 Leg . | . . . . Wheel . | . . . . Hover . | . . . . Flight . | . . . . Utility 6 | 1 3 . 2 Device . | . . . . Storage 2 | 1 1 . . Processor 1 | . . . 1 Hackware . | . . . . Protection 3 | . 2 . 1 Artifact . | . . . . Weapon 18 | 4 6 . 8 Energy Gun 3 | 2 1 . . Energy Cannon 6 | . . . 6 Ballistic Gun 5 | 2 1 . 2 Ballistic Cannon 1 | . 1 . . Launcher 3 | . 3 . . Special Weapon . | . . . . Impact Weapon . | . . . . Slashing Weapon . | . . . . Piercing Weapon . | . . . . Special Melee Weapon . | . . . . Unidentified Prototypes 1 | . . . 1 Parts Lost 2 | . 1 . 1 Power 1 | . 1 . . Propulsion 1 | . . . 1 Utility . | . . . . Weapon . | . . . . Highest Loss Streak 1 | . 1 . 1 To Critical Strikes . | . . . . Average Slot Usage (%) 97 | . 96 100 98 Engine 9 | . 14 14 . Core 3 | . . . 10 Treads 26 | . 28 28 21 Storage 13 | . 13 14 11 Processor 3 | . . . 10 Protection 14 | . 10 14 21 Energy Gun 1 | . 2 . . Energy Cannon 5 | . . . 18 Ballistic Gun 5 | . 7 . 3 Ballistic Cannon 5 | . 6 14 . Launcher 8 | . 11 14 . Naked Turns . | . . . . Heaviest Build 44 | 13 26 26 44 Greatest Support 43 | 40 40 20 43 Greatest Overweight (x) 14 | . 1 1 14 Average Overweight (x) . | . . 1 . Largest Inventory Capacity 10 | 8 10 10 10 Average Capacity 9 | 6 9 10 10 Most Carried 10 | 4 10 10 10 Average Carried 7 | 2 7 8 8 Final Capacity 10 | 8 10 10 10 Final Carried 9 | 2 9 9 8 Class Distribution -------------------- 100% | Mutant Dominant Class ---------------- Mutant | -10/Materials Mutant | -10/Mines Mutant | -9/Materials Resources | -11 -10 -10 -9 ----------- Run | Yrd Mat Min Mat Matter Collected 891 | 231 282 . 378 Remotely . | . . . . Salvage Created 853 | . 423 . 430 Parts 72 | . 40 . 32 Haulers Intercepted 2 | . 1 . 1 Recyclers Shooed . | . . . . Parts Field Recycled . | . . . . Retrieved Matter . | . . . . Parts Self-Destructed . | . . . . Prevented . | . . . . Kills | -11 -10 -10 -9 ------- Run | Yrd Mat Min Mat Combat Hostiles Destroyed 24 | . 14 . 10 Guns 4 | . 3 . 1 Cannons 11 | . 2 . 9 AOE 9 | . 9 . . Classes Destroyed 9 | . 7 . 2 Worker 3 | . 3 . . Builder 1 | . 1 . . Tunneler 1 | . 1 . . Hauler 2 | . 1 . 1 Recycler 1 | . . . 1 Watcher 4 | . 3 . 1 Swarmer 9 | . 3 . 6 Grunt 12 | . 11 . 1 Sentry 3 | . . . 3 Best Kill Streak 6 | . 6 . 3 Combat Bots Only 5 | . 5 . 3 Max Kills in Single Turn 2 | . 2 . 1 Gunslinging . | . . . . Exploded 2 | . 2 . . Melee . | . . . . Uniques/NPCs Destroyed . | . . . . Combat | -11 -10 -10 -9 -------- Run | Yrd Mat Min Mat Hostile Shots Fired 147 | . 81 . 66 Missed 47 | . 31 . 16 Damage Taken 1399 | . 526 . 873 Core 548 | . 110 . 438 Absorbed by Shields . | . . . . Ignored by Resistances 84 | . . . 84 Core Remaining (%) 78 | 100 . 56 . Volleys Fired 99 | . 55 . 44 Largest 2 | . 2 . 2 Hottest 128 | . 70 . 128 Shots Fired 168 | . 92 . 76 Gun 65 | . 54 . 11 Cannon 81 | . 16 . 65 Launcher 22 | . 22 . . Special . | . . . . Kinetic 63 | . 52 . 11 Thermal 83 | . 18 . 65 Explosive 22 | . 22 . . Electromagnetic . | . . . . Robot Hit Streak 12 | . 12 . 7 Robot Miss Streak 9 | . 4 . 9 Penetration Max . | . . . . Secondary Targets . | . . . . Shots Hit Robots 81 | . 50 . 31 Core Hits 52 | . 38 . 14 Critical Kills . | . . . . Critical Parts Destroyed . | . . . . Critical Strikes . | . . . . Melee Attacks . | . . . . Impact . | . . . . Slashing . | . . . . Piercing . | . . . . Sneak Attacks . | . . . . Combat Hostiles . | . . . . Follow-up Attacks . | . . . . Damage Inflicted 2237 | . 1397 . 840 Guns 383 | . 306 . 77 Cannons 975 | . 212 . 763 Explosions 879 | . 879 . . Melee . | . . . . Ramming . | . . . . Kinetic 472 | . 395 . 77 Thermal 886 | . 123 . 763 Explosive 879 | . 879 . . Electromagnetic . | . . . . Impact . | . . . . Slashing . | . . . . Piercing . | . . . . Highest Corruption . | . . . . Average Corruption . | . . . . Corruption Purged . | . . . . Corruption Blocked . | . . . . Overload Shots . | . . . . Overflow Damage 9 | . . . 9 Projectiles 9 | . . . 9 Explosions . | . . . . Melee . | . . . . Knockbacks 2 | . 2 . . Impact . | . . . . Kinetic 2 | . 2 . . Secondary . | . . . . Self-Inflicted Damage 64 | . 64 . . Shots 3 | . 3 . . Rammed . | . . . . Targets Rammed . | . . . . Kicked . | . . . . Crushed . | . . . . Highest Temperature 1474 | . 215 . 1474 Average Temperature 292 | . 53 . 418 Received Heat Transfer 240 | . 102 . 138 Effects 63 | . 1 . 62 Shutdowns 13 | . . . 13 Energy Bleed 11 | . 1 . 10 Interference 5 | . . . 5 Matter Decay 3 | . . . 3 Short Circuit 5 | . . . 5 Damage (minor) 2 | . . . 2 Damage (major) 17 | . . . 17 Damage (core) 7 | . . . 7 Siege Activations . | . . . . Robots Corrupted . | . . . . Combat Hostiles . | . . . . Parts Fried . | . . . . Impact Corruptions . | . . . . Robots Melted . | . . . . Combat Hostiles . | . . . . Parts Melted 1 | . 1 . . Heat Transferred 1665 | . 370 . 1295 Parts Sabotaged . | . . . . Parts Stolen . | . . . . Parts Stripped . | . . . . Power Chain Reactions . | . . . . Alert | -11 -10 -10 -9 ------- Run | Yrd Mat Min Mat Peak Influence 315 | . 315 19 181 Initial 19 | . . 19 7 Average 83 | . 101 19 74 Maximum Alert Level 1 | . 1 . . Low Security (%) 91 | 100 86 100 100 Level 1 8 | . 13 . . Level 2 . | . . . . Level 3 . | . . . . Level 4 . | . . . . Level 5 . | . . . . High Security . | . . . . Max Security . | . . . . Squads Dispatched 5 | . 4 . 1 Investigation 4 | . 4 . . Extermination . | . . . . Reinforcement 1 | . . . 1 Assault . | . . . . Garrison . | . . . . Intercept . | . . . . Searches Triggered . | . . . . Construction Impeded . | . . . . Haulers Reinforced . | . . . . Active Scanning Responses . | . . . . Cargo Convoy Interrupts . | . . . . Stealth | -11 -10 -10 -9 --------- Run | Yrd Mat Min Mat Distress Signals 2 | . . . 2 Communications Jammed . | . . . . Distress Signals . | . . . . Times Spotted 42 | . 22 . 20 Peak Tracking Total 4 | . 3 . 4 Tactical Retreats 2 | . 1 . 1 Traps | -11 -10 -10 -9 ------- Run | Yrd Mat Min Mat Traps Triggered 4 | . 1 . 3 Indirectly 3 | . . . 3 Trap Hack Attempts . | . . . . Triggered . | . . . . Disarmed . | . . . . Reprogrammed . | . . . . Reused . | . . . . Traps Extracted . | . . . . Installed . | . . . . Triggered . | . . . . Machines | -11 -10 -10 -9 ---------- Run | Yrd Mat Min Mat Machines Disabled 9 | . 5 . 4 Max in Single Turn 3 | . 1 . 3 Machines Repaired . | . . . . Machines Dismantled . | . . . . Machines Sabotaged . | . . . . Overloaded Fab Kills . | . . . . Hacking | -11 -10 -10 -9 --------- Run | Yrd Mat Min Mat Machines Accessed 11 | . 8 1 2 Terminals 5 | . 5 . . Fabricators . | . . . . Repair Stations 1 | . 1 . . Recycling Units 3 | . 2 . 1 Scanalyzers 1 | . . . 1 Garrison Access . | . . . . Total Hacks 36 | . 29 1 6 Successful 19 | . 14 1 4 Failed 17 | . 15 . 2 Catastrophic 1 | . 1 . . Database Lockouts . | . . . . Manual 2 | . 2 . . Terminals 19 | . 19 . . Fabricators . | . . . . Repair Stations 5 | . 5 . . Recycling Units 9 | . 5 . 4 Scanalyzers 2 | . . . 2 Garrison Access . | . . . . Terminal Hacks 10 | . 9 1 . Prototype ID Bank 2 | . 2 . . Open Door 1 | . . 1 . Alert Level 1 | . 1 . . Unreport Threat 1 | . 1 . . Locate Traps 2 | . 2 . . Maintenance Status 1 | . 1 . . Registered Components 1 | . 1 . . Zone Layout 1 | . 1 . . Fabricator Hacks . | . . . . Repair Station Hacks 2 | . 2 . . Scan Component 2 | . 2 . . Recycling Unit Hacks 5 | . 3 . 2 Process 1 | . 1 . . Report Inventory 2 | . 1 . 1 Retrieve Components 2 | . 1 . 1 Scanalyzer 2 | . . . 2 Insert Component 1 | . . . 1 Analyze 1 | . . . 1 Garrison Access Hacks . | . . . . Unauthorized Hacks . | . . . . Terminals . | . . . . Fabricators . | . . . . Repair Stations . | . . . . Recycling Units . | . . . . Scanalyzers . | . . . . Garrison Access . | . . . . Data Cores Recovered . | . . . . Used . | . . . . Hacking Detections 7 | . 6 . 1 Full Trace Events 4 | . 3 . 1 Feedback Events . | . . . . Feedback Blocked . | . . . . Robot Schematics Acquired . | . . . . Robots Built . | . . . . Authchips . | . . . . Time . | . . . . Total Robot Build Rating . | . . . . Part Schematics Acquired 1 | . . . 1 Parts Built . | . . . . Authchips . | . . . . Time . | . . . . Total Part Build Rating . | . . . . Parts Repaired . | . . . . Time . | . . . . Parts Recycled . | . . . . Recycled Matter 30 | . 30 . . Retrieved Matter . | . . . . Retrieved Components 12 | . 10 . 2 Parts Scanalyzed 1 | . . . 1 Part Schematics Acquired 1 | . . . 1 Parts Damaged . | . . . . Bothacking | -11 -10 -10 -9 ------------ Run | Yrd Mat Min Mat Used RIF Installer . | . . . . Robots Hacked . | . . . . Non-combat . | . . . . Combat . | . . . . Robot Hacks Applied . | . . . . Relay Couplers Released . | . . . . Fabnet Peak Effective % . | . . . . Robots Rewired . | . . . . Allies Hacked . | . . . . Hacks Repelled . | . . . . Allies | -11 -10 -10 -9 -------- Run | Yrd Mat Min Mat Total Allies . | . . . . Largest Group . | . . . . Highest-Rated Group . | . . . . Highest-Rated Ally . | . . . . Total Orders . | . . . . Ally Attacks . | . . . . Total Damage . | . . . . Kills . | . . . . Allies Corrupted . | . . . . Allies Melted . | . . . . Intel | -11 -10 -10 -9 ------- Run | Yrd Mat Min Mat Robot Analysis Total . | . . . . Derelict Logs Recovered . | . . . . Drone Launches . | . . . . Drone Recoveries . | . . . . Exploration | -11 -10 -10 -9 ------------- Run | Yrd Mat Min Mat Turns Passed 3153 | 78 1870 288 917 Spaces Moved 1535 | 51 978 119 387 Core 22 | 18 . . 4 Treads 1513 | 33 978 119 383 Legs . | . . . . Wheels . | . . . . Hover . | . . . . Flight . | . . . . Fastest Speed 50 | 50 160 240 160 Average Speed 180 | 121 170 240 194 Slowest Speed 750 | 160 240 240 750 Overloaded Moves . | . . . . Propulsion Burnouts . | . . . . Robots Hopped . | . . . . Cave-ins Triggered . | . . . . Exploration Rate (%) 39 | 5 99 20 32 Regions Visited 3 Branch Regions 1 Pre-discovered Areas . | . . . . Known Exits Taken . | . . . . Unknown Exits Taken 3 | 1 1 1 . Scrap Searched . | . . . . Spaces Dug 12 | . 12 . . Terrain Destroyed 110 | . 105 . 5 Melee . | . . . . Projectile 5 | . . . 5 AOE 105 | . 105 . . Terrain Rammed . | . . . . Walls Destroyed . | . . . . Machines Disabled . | . . . . Actions | -11 -10 -10 -9 --------- Run | Yrd Mat Min Mat Total 1776 | 67 1104 125 480 Wait 41 | . 30 1 10 Move 1532 | 50 977 118 387 Hop . | . . . . Pick Up 41 | 8 18 3 12 Fast Attach . | . . . . Attach 23 | 7 8 . 8 Detach 5 | 1 3 . 1 Swap 12 | 1 4 . 7 Drop 23 | . 9 3 11 Fire 99 | . 55 . 44 Melee . | . . . . Ram . | . . . . Kick . | . . . . Crush . | . . . . Escape Stasis . | . . . . Rewire . | . . . . Trap . | . . . . Miscellaneous . | . . . . Route ------- -11/Scrapyard -10/Materials (discovered 6 exits: *Mat x3 / *Min x2 / [*Sub]) -10/Mines -9/Materials (discovered 3 exits: [*Mat] / [*Min] / [*Sto]) History --------- Turn | Location | Event 9 | -11/Scrapyard | Discovered new exit (range 15) 79 | -11/Scrapyard | Entered Materials 314 | -10/Materials | Build established: Mutant 588 | -10/Materials | Discovered new exit (range 16) 767 | -10/Materials | Discovered new exit (range 11) 831 | -10/Materials | Discovered new exit (range 9) 951 | -10/Materials | Discovered new exit (range 15) 1275 | -10/Materials | Discovered new exit (range 13) 1506 | -10/Materials | Discovered new exit (range 10) 1949 | -10/Materials | Entered Mines 1999 | -10/Mines | Assembled infested the area 2004 | -10/Mines | Assisted by a Guerilla fighting off Assembled 2045 | -10/Mines | Met a Derelict who couldn't figure out how to use a Trap Extractor 2216 | -10/Mines | Discovered new exit (range 5) 2237 | -10/Mines | Entered Materials 2237 | -9/Materials | Evolved 2 slots: Utility x2 2505 | -9/Materials | Discovered new exit (range 12) 2827 | -9/Materials | Discovered new exit (range 11) 3026 | -9/Materials | Discovered new exit (range 3) 3121 | -9/Materials | Core integrity fell below 50% 3145 | -9/Materials | Core integrity fell below 20% 3155 | -9/Materials | Core destroyed Last Messages --------------- Overheating: Ion Cannon damaged (-28). Overheating: Med. Storage Unit damaged (-19). Overheating: Broken Ion Cannon damaged (-5). Power failure, Nuclear Core shutdown. Overheating: Energy bleed (-25). K-01 Serf collects debris. Overheating: Core damaged (-64). K-01 Serf collects debris. Overheating: Energy bleed (-21). K-01 Serf collects debris. Power failure, Nuclear Core shutdown. Overheating: Energy bleed (-24). K-01 Serf collects debris. Overheating: Ion Cannon damaged (-42). Overheating: Med. Storage Unit damaged (-14). Ion Cannon broken. Overheating: Short circuit. Overheating: Energy bleed (-15). K-01 Serf collects debris. Overheating: Core damaged (-56). Map ----- +----------------------------------------------------+ | | | | | | | ?????????????????????????????????????????????????? | | ?????????????????????????????????????????????????? | | ?????????????????????????????????????????????????? | | ??????????????????????????????????????"""????????? | | ??????????????????????????????????????"""????????? | | ??????????????????????????????????????"""????????? | | ?????????????????????????????????????????????????? | | ?????????????????????????????????????????????????? | | ?????????????????????????????????????????????????? | | ????????###########?????????????????"Y"??????????? | | ????????# #?????????????????"""??????????? | | ????????# #####??????????????????????????? | | ????????# # #??????????????????????????? | | ????????# #*< #????? /???????????????????? | | ????????# #=%!# +?????????????????? | | ######### *+ !=+ #?????????????????? | | + # [ # #?????????????????? | | ######### #= #??????????????????????????? | | ################### ##?????????????????????????? | | #?????????# ############## ?????????? | | #?????????# [ ![= = %= ????????? | | #?????????# ! ! kk%[ *%! u ????????? | | #?????????# @[=!a[ u w ????????? | | #?????????# ####= ####???????????????? | | = #?????????########??? u#??????????????????? | | #????????????????????? #??????????????????? | | ###+####??????????????????????#??????????????????? | | ??# #????????????????????????????????????????????? | | ??# #????????????????????????????????????????????? | | ??# #????????????????????????????????????????????? | | ### ## !#???????????????????????????????????????? | | !#???????????????????????????????????????? | | !#???????????????????????????????????????? | | !##???????????????????????????????????????? | | ##+######????????????????????????????????????????? | | ?????????????????????????????????????????????????? | | ?"""?????????????????????????????????????????????? | | ?"""?????????????????????????????????????????????? | | ?"""?????????????????????????????????????????????? | | ?????????????????????????????????????????????????? | | ?????????????????????????????????????????????????? | | ?????????????????????????????????????????????????? | | ""???????????????????????????????????????????????? | | ""???????????????????????????????????????????????? | | "T???????????????????????????????????????????????? | | ""???????????????????????????????????????????????? | | ""???????????????????????????????????????????????? | +----------------------------------------------------+ Best States ------------- Heat Dissipation 28 Energy Generation 14 Energy Capacity 250 Matter Stores 292 Matter Capacity 300 Sight Range 16 Terrain Scan Density 10 Armor Coverage 300 Resistance: KI 20 Evasion (%) 50 Recoil Reduction 2 Item Schematics ----------------- Imp. Treads | -9/Materials | Scanalyzed Robot Schematics ------------------ None Fabricated ------------ Nothing Alien Tech Used ----------------- None Achievements -------------- Everything Is Under Control Challenges ------------ None Game ------ Seed FieldBladeOptics Manual? 0 Play Time 00:26:13 Cumulative 7.2 hours Start 2024.04.07 @ 16:10:37 End 2024.04.07 @ 16:40:19 Sessions 1 Manual Loads 0 Difficulty Rogue Special Mode None Game No. 15 Rogue 15 Adventurer 0 Explorer 0 Win Type - Total 0 Types 0/0/0/0/0/0/0/0/0 Lore% 16 Gallery% 13 Achievement% 15 Wizard Run 0 Options --------- Layout 1 ASCII 0 Keyboard 0 Movement Arrows Keybinds 0 Fullscreen 1 Font 24/Smallcaps Map View 50x35 Zoom Use 0% Tactical HUD 0 Map Filters NONE Filters NONE Steam 1 RUN: 18c59d48-2830-476e-80c2-0cb797e93521